[Event "Slovakian ECo-C Extraliga 2024-25"]
[Site "Slovakia"]
[Date "2024.11.23"]
[Round "1.7"]
[White "Krak, Tomas"]
[Black "Szegi, Tamas"]
[Result "1-0"]
[ECO "E92"]
[WhiteElo "2229"]
[BlackElo "2141"]
[Annotator "RC"]
[PlyCount "91"]
[EventDate "2024.09.12"]
[EventType "team-tourn"]
[EventCountry "SVK"]
[SourceTitle "playchess.com"]
[Source "ChessBase"]
[SourceQuality "1"]
[TimeControl "5400+30"]

1. Nf3 {[%emt 0:00:23]} Nf6 {[%emt 0:00:12]} 2. c4 {[%emt 0:00:42]} g6 {[%emt 0:01:30]} 3. Nc3 {[%emt 0:00:27]} Bg7 {[%emt 0:02:24]} 4. e4 {[%emt 0:05:48]} d6 {[%emt 0:04:57]} 5. d4 {[%emt 0:00:06]} O-O {[%emt 0:00:08]} 6. Be2 {[%emt 0:00:06]} e5 {[%emt 0:00:48]} 7. dxe5 {[%emt 0:02:02]} dxe5 {[%emt 0:00:07]} 8. Qxd8 {[%emt 0:00:07]} Rxd8 {[%emt 0:00:05]} 9. Bg5 {[%emt 0:00:07]} c6 {[%emt 0:05:16]} 10. Nxe5 {[%emt 0:01:32]} Re8 {[%emt 0:00:14]} 11. O-O-O {[%emt 0:03:22]} Na6 {[%emt 0:09:16]} 12. f4 {[%emt 0:06:33]} h6 {[%emt 0:12:52]} 13. Bxf6 {[%emt 0:34:49]} Bxf6 {[%emt 0:00:35]} 14. Nf3 {[%emt 0:00:21]} Bxc3 {[%emt 0:04:42]} 15. bxc3 {[%emt 0:00:58]} Nc5 {[%emt 0:10:23]} 16. e5 {[%emt 0:01:29]} Ne4 {[%emt 0:00:41]} 17. Rhe1 {[%emt 0:09:50]} Nxc3 {[%emt 0:02:33]} 18. Rd2 {[%emt 0:00:40]} Nxe2+ {[%emt 0:02:35]} 19. Rexe2 {[%emt 0:01:18]} Be6 {[%emt 0:00:28]} 20. c5 {[%emt 0:05:21]} b6 {[%emt 0:14:56]} 21. Rd6 {[%emt 0:02:33]} bxc5 {[%emt 0:02:59]} 22. Rc2 {[%emt 0:01:15]} Bd5 {[%emt 0:05:08]} 23. Rxc5 {[%emt 0:01:05]} Bxa2 {[%emt 0:01:45]} 24. Rcxc6 {[%emt 0:03:18]} Rac8 {[%emt 0:02:51]} 25. Nd4 {[%emt 0:00:46]} Kg7 {[%emt 0:04:55]} 26. Kb2 {[%emt 0:03:55]} Rxc6 {[%emt 0:00:26]} 27. Nxc6 {[%emt 0:00:29]} Be6 {[%emt 0:00:17]} 28. Nxa7 {[%emt 0:01:10]} Ra8 {[%emt 0:02:04]} 29. Ra6 {[%emt 0:00:50]} Rb8+ {[%emt 0:01:24]} 30. Kc3 {[%emt 0:01:12]} Rb3+ {[%emt 0:04:13]} 31. Kc2 {[%emt 0:01:54]} Rb4 {[%emt 0:00:04]} 32. g3 {[%emt 0:02:25]} g5 {[%emt 0:01:25]} 33. Nc6 {[%emt 0:02:19]} Rc4+ {[%emt 0:00:06]} 34. Kd3 {[%emt 0:00:48]} Rc1 {[%emt 0:01:01]} 35. Nd4 {[%emt 0:02:53]} Rd1+ {[%emt 0:01:37]} 36. Ke3 {[%emt 0:01:22]} gxf4+ {[%emt 0:00:13]} 37. gxf4 {[%emt 0:00:07]} Bg4 {[%emt 0:01:39]} 38. f5 {[%emt 0:01:22]} Rf1 {[%emt 0:01:24]} 39. Ke4 {[%emt 0:01:31]} Bh3 {[%emt 0:00:33]} 40. Ra7 {[%emt 0:00:00]} Re1+ {[%emt 0:00:00]} 41. Kd5 {[%emt 0:00:00]} Bg2+ {[%emt 0:00:00]} 42. Kd6 {[%emt 0:00:00]} Rd1 {[%emt 0:00:00]} 43. Ra4 {[%emt 0:00:00]} Bh3 {[%emt 0:00:00]} 44. Ke7 {[%emt 0:00:00]} Rd2 {[%emt 0:00:00]} 45. e6 {[%emt 0:00:00]} Rb2 {[%emt 0:00:00]} 46. Ra7 {[%emt 0:00:00]} 1-0

[Event "Slovakian ECo-C Extraliga 2024-25"]
[Site "Slovakia"]
[Date "2024.11.23"]
[Round "1.7"]
[White "Cajka, Tibor"]
[Black "Lisko, Frantisek"]
[Result "1-0"]
[ECO "E10"]
[WhiteElo "2159"]
[BlackElo "2160"]
[Annotator "RC"]
[PlyCount "77"]
[EventDate "2024.09.12"]
[EventType "team-tourn"]
[EventCountry "SVK"]
[SourceTitle "playchess.com"]
[Source "ChessBase"]
[SourceQuality "1"]
[TimeControl "5400+30"]

1. d4 {[%emt 0:00:10]} Nf6 {[%emt 0:00:07]} 2. Nf3 {[%emt 0:00:11]} e6 {[%emt 0:00:13]} 3. c4 {[%emt 0:00:31]} c5 {[%emt 0:00:14]} 4. d5 {[%emt 0:00:22]} b5 {[%emt 0:00:24]} 5. Bg5 {[%emt 0:02:50]} exd5 {[%emt 0:02:53]} 6. cxd5 {[%emt 0:01:30]} d6 {[%emt 0:00:35]} 7. Nc3 {[%emt 0:07:25]} a6 {[%emt 0:02:02]} 8. e4 {[%emt 0:04:26]} Be7 {[%emt 0:01:32]} 9. Bd3 {[%emt 0:04:24]} O-O {[%emt 0:02:17]} 10. Bf4 {[%emt 0:05:22]} Nh5 {[%emt 0:11:56]} 11. Be3 {[%emt 0:02:34]} Nd7 {[%emt 0:05:04]} 12. h3 {[%emt 0:05:56]} Re8 {[%emt 0:05:21]} 13. O-O {[%emt 0:01:01]} g6 {[%emt 0:06:16]} 14. g4 {[%emt 0:09:13]} Ng7 {[%emt 0:01:09]} 15. a4 {[%emt 0:06:22]} b4 {[%emt 0:07:09]} 16. Ne2 {[%emt 0:00:20]} h5 {[%emt 0:03:04]} 17. Ng3 {[%emt 0:04:04]} Nf6 {[%emt 0:19:33]} 18. Nh2 {[%emt 0:15:34]} Qd7 {[%emt 0:02:48]} 19. f3 {[%emt 0:06:24]} Nh7 {[%emt 0:03:24]} 20. Qd2 {[%emt 0:00:51]} Bh4 {[%emt 0:01:30]} 21. Kg2 {[%emt 0:01:26]} Qe7 {[%emt 0:01:57]} 22. Rac1 {[%emt 0:03:41]} f5 {[%emt 0:06:27]} 23. Bh6 {[%emt 0:02:26]} fxg4 {[%emt 0:02:48]} 24. fxg4 {[%emt 0:00:59]} Ng5 {[%emt 0:00:48]} 25. Rce1 {[%emt 0:02:59]} Kh7 {[%emt 0:01:19]} 26. Bxg5 {[%emt 0:02:12]} Bxg5 {[%emt 0:00:20]} 27. Qf2 {[%emt 0:00:36]} Bd7 {[%emt 0:01:23]} 28. gxh5 {[%emt 0:01:14]} gxh5 {[%emt 0:00:51]} 29. e5+ {[%emt 0:01:00]} Kh8 {[%emt 0:00:15]} 30. e6 {[%emt 0:02:13]} Bxa4 {[%emt 0:00:11]} 31. Qe2 {[%emt 0:00:56]} Bb3 {[%emt 0:01:09]} 32. Qe4 {[%emt 0:00:44]} Nxe6 {[%emt 0:01:08]} 33. dxe6 {[%emt 0:00:32]} Bxe6 {[%emt 0:02:03]} 34. Qg6 {[%emt 0:04:11]} Qb7+ {[%emt 0:06:14]} 35. Kg1 {[%emt 0:02:03]} Bh4 {[%emt 0:03:01]} 36. Rxe6 {[%emt 0:00:56]} Rxe6 {[%emt 0:00:29]} 37. Qxe6 {[%emt 0:00:18]} Qg7 {[%emt 0:00:27]} 38. Qe4 {[%emt 0:00:59]} Bxg3 {[%emt 0:00:32]} 39. Qxa8+ {[%emt 0:00:12]} 1-0

[Event "Slovakian ECo-C Extraliga 2024-25"]
[Site "Slovakia"]
[Date "2024.11.23"]
[Round "1.7"]
[White "Petran, Peter"]
[Black "Varga, Zoltan"]
[Result "1/2-1/2"]
[ECO "A06"]
[WhiteElo "2150"]
[BlackElo "2290"]
[Annotator "RC"]
[PlyCount "80"]
[EventDate "2024.09.12"]
[EventType "team-tourn"]
[EventCountry "SVK"]
[SourceTitle "playchess.com"]
[Source "ChessBase"]
[SourceQuality "1"]
[TimeControl "5400+30"]

1. Nf3 {[%emt 0:00:05]} d5 {[%emt 0:00:09]} 2. g3 {[%emt 0:00:12]} c5 {[%emt 0:00:08]} 3. c4 {[%emt 0:00:30]} Nf6 {[%emt 0:02:30]} 4. cxd5 {[%emt 0:00:09]} Nxd5 {[%emt 0:00:05]} 5. Nc3 {[%emt 0:00:05]} Nc6 {[%emt 0:00:12]} 6. Bg2 {[%emt 0:00:26]} Nc7 {[%emt 0:00:23]} 7. O-O {[%emt 0:01:20]} g6 {[%emt 0:03:11]} 8. d3 {[%emt 0:02:40]} Bg7 {[%emt 0:00:57]} 9. Be3 {[%emt 0:00:47]} b6 {[%emt 0:04:02]} 10. Qc1 {[%emt 0:01:33]} h6 {[%emt 0:00:07]} 11. a3 {[%emt 0:04:00]} Bb7 {[%emt 0:03:29]} 12. Rb1 {[%emt 0:00:29]} a5 {[%emt 0:07:05]} 13. a4 {[%emt 0:02:58]} Nb4 {[%emt 0:04:44]} 14. Rd1 {[%emt 0:07:10]} Rc8 {[%emt 0:07:40]} 15. Bf4 {[%emt 0:05:07]} Ne6 {[%emt 0:10:33]} 16. Nb5 {[%emt 0:13:16]} Bxf3 {[%emt 0:04:05]} 17. exf3 {[%emt 0:02:24]} Nxf4 {[%emt 0:03:19]} 18. Qxf4 {[%emt 0:01:27]} O-O {[%emt 0:00:03]} 19. Qc4 {[%emt 0:00:20]} Qd7 {[%emt 0:08:24]} 20. f4 {[%emt 0:01:07]} Rfd8 {[%emt 0:00:07]} 21. Rd2 {[%emt 0:02:28]} e6 {[%emt 0:04:40]} 22. Rbd1 {[%emt 0:00:30]} Bd4 {[%emt 0:05:59]} 23. Bf3 {[%emt 0:01:24]} Qe7 {[%emt 0:00:18]} 24. Kg2 {[%emt 0:00:49]} Rd7 {[%emt 0:00:07]} 25. h4 {[%emt 0:01:31]} h5 {[%emt 0:01:35]} 26. Re2 {[%emt 0:03:46]} Qd8 {[%emt 0:00:38]} 27. b3 {[%emt 0:02:21]} Kg7 {[%emt 0:00:15]} 28. Red2 {[%emt 0:00:30]} Bf6 {[%emt 0:01:07]} 29. Kg1 {[%emt 0:04:57]} Qf8 {[%emt 0:02:37]} 30. Bg2 {[%emt 0:01:40]} Bd4 {[%emt 0:01:35]} 31. Bf3 {[%emt 0:00:47]} Rcd8 {[%emt 0:00:09]} 32. Bg2 {[%emt 0:00:11]} Kh7 {[%emt 0:01:37]} 33. Bf3 {[%emt 0:01:02]} Qh8 {[%emt 0:00:20]} 34. Bg2 {[%emt 0:02:48]} Qf6 {[%emt 0:00:10]} 35. Be4 {[%emt 0:00:31]} Kg7 {[%emt 0:01:49]} 36. Kg2 {[%emt 0:00:43]} Kh6 {[%emt 0:00:22]} 37. Bf3 {[%emt 0:01:45]} Kg7 {[%emt 0:05:33]} 38. Be4 {[%emt 0:00:45]} Qe7 {[%emt 0:02:16]} 39. Bf3 {[%emt 0:00:18]} Kh7 {[%emt 0:02:17]} 40. Kg1 {[%emt 0:01:28]} Kg7 1/2-1/2

[Event "Slovakian ECo-C Extraliga 2024-25"]
[Site "Slovakia"]
[Date "2024.11.23"]
[Round "1.7"]
[White "Veres, Andrej"]
[Black "Straka, Jozef"]
[Result "0-1"]
[ECO "A45"]
[WhiteElo "2144"]
[BlackElo "2277"]
[Annotator "RC"]
[PlyCount "72"]
[EventDate "2024.09.12"]
[EventType "team-tourn"]
[EventCountry "SVK"]
[SourceTitle "playchess.com"]
[Source "ChessBase"]
[SourceQuality "1"]
[TimeControl "5400+30"]

1. d4 {[%emt 0:00:09]} Nf6 {[%emt 0:00:04]} 2. d5 {[%emt 0:01:52]} c6 {[%emt 0:01:29]} 3. c4 {[%emt 0:00:07]} cxd5 {[%emt 0:03:22]} 4. cxd5 {[%emt 0:00:57]} e6 {[%emt 0:09:25]} 5. dxe6 {[%emt 0:08:39]} fxe6 {[%emt 0:00:24]} 6. g3 {[%emt 0:00:18]} Bc5 {[%emt 0:07:34]} 7. e3 {[%emt 0:00:48]} Nc6 {[%emt 0:03:12]} 8. Ne2 {[%emt 0:02:35]} d5 {[%emt 0:02:29]} 9. Bg2 {[%emt 0:02:11]} e5 {[%emt 0:08:25]} 10. Nbc3 {[%emt 0:05:27]} Be6 {[%emt 0:01:15]} 11. O-O {[%emt 0:00:23]} O-O {[%emt 0:04:43]} 12. a3 {[%emt 0:03:46]} Qd7 {[%emt 0:01:53]} 13. b4 {[%emt 0:00:47]} Be7 {[%emt 0:00:49]} 14. Bb2 {[%emt 0:04:48]} Rad8 {[%emt 0:00:30]} 15. Qd2 {[%emt 0:00:47]} Bh3 {[%emt 0:05:51]} 16. Rad1 {[%emt 0:02:54]} Bxg2 {[%emt 0:02:03]} 17. Kxg2 {[%emt 0:00:03]} d4 {[%emt 0:05:49]} 18. exd4 {[%emt 0:01:06]} exd4 {[%emt 0:00:16]} 19. Nb1 {[%emt 0:02:58]} Ne4 {[%emt 0:14:59]} 20. Qe1 {[%emt 0:04:16]} Ng5 {[%emt 0:05:41]} 21. Ng1 {[%emt 0:00:44]} Qd5+ {[%emt 0:04:02]} 22. f3 {[%emt 0:00:14]} Bf6 {[%emt 0:01:42]} 23. h4 {[%emt 0:01:32]} Nf7 {[%emt 0:03:18]} 24. Qf2 {[%emt 0:02:32]} Nfe5 {[%emt 0:02:28]} 25. Nc3 {[%emt 0:03:26]} Qb3 {[%emt 0:01:11]} 26. Ne4 {[%emt 0:00:01]} Nd3 {[%emt 0:01:43]} 27. Qe2 {[%emt 0:00:01]} Nxb2 {[%emt 0:01:22]} 28. Rb1 {[%emt 0:00:40]} Qxa3 {[%emt 0:02:13]} 29. Rxb2 {[%emt 0:01:24]} d3 {[%emt 0:01:37]} 30. Nxf6+ {[%emt 0:00:08]} Rxf6 {[%emt 0:00:06]} 31. Qd2 {[%emt 0:00:43]} Ne5 {[%emt 0:02:54]} 32. Rc1 {[%emt 0:04:21]} Rc6 {[%emt 0:00:57]} 33. Rxc6 {[%emt 0:03:35]} Nxc6 {[%emt 0:00:07]} 34. f4 {[%emt 0:08:04]} Nd4 {[%emt 0:01:28]} 35. Kf2 {[%emt 0:03:36]} Nb3 {[%emt 0:02:04]} 36. Qc3 {[%emt 0:02:22]} d2 {[%emt 0:00:13]} 0-1

[Event "Slovakian ECo-C Extraliga 2024-25"]
[Site "Slovakia"]
[Date "2024.11.23"]
[Round "1.7"]
[White "Sandor, Martin"]
[Black "Varga, Zoltan"]
[Result "*"]
[ECO "A06"]
[WhiteElo "2089"]
[BlackElo "2290"]
[Annotator "RC"]
[PlyCount "37"]
[EventDate "2024.09.12"]
[EventType "team-tourn"]
[EventCountry "SVK"]
[SourceTitle "playchess.com"]
[Source "ChessBase"]
[SourceQuality "1"]
[TimeControl "5400+30"]

1. Nf3 {[%emt 0:00:05]} d5 {[%emt 0:00:09]} 2. g3 {[%emt 0:00:12]} c5 {[%emt 0:00:08]} 3. c4 {[%emt 0:00:30]} Nf6 {[%emt 0:02:30]} 4. cxd5 {[%emt 0:00:09]} Nxd5 {[%emt 0:00:05]} 5. Nc3 {[%emt 0:00:05]} Nc6 {[%emt 0:00:12]} 6. Bg2 {[%emt 0:00:26]} Nc7 {[%emt 0:00:23]} 7. O-O {[%emt 0:01:20]} g6 {[%emt 0:03:11]} 8. d3 {[%emt 0:02:40]} Bg7 {[%emt 0:00:57]} 9. Be3 {[%emt 0:00:47]} b6 {[%emt 0:04:02]} 10. Qc1 {[%emt 0:01:33]} h6 {[%emt 0:00:07]} 11. a3 {[%emt 0:04:00]} Bb7 {[%emt 0:03:29]} 12. Rb1 {[%emt 0:00:29]} a5 {[%emt 0:07:05]} 13. a4 {[%emt 0:02:58]} Nb4 {[%emt 0:04:44]} 14. Rd1 {[%emt 0:07:10]} Rc8 {[%emt 0:07:40]} 15. Bf4 {[%emt 0:05:07]} Ne6 {[%emt 0:10:33]} 16. Nb5 {[%emt 0:13:16]} Bxf3 {[%emt 0:04:05]} 17. exf3 {[%emt 0:02:24]} Nxf4 {[%emt 0:03:19]} 18. Qxf4 {[%emt 0:01:27]} O-O {[%emt 0:00:03]} 19. Qc4 {[%emt 0:00:20]} *

[Event "Slovakian ECo-C Extraliga 2024-25"]
[Site "Slovakia"]
[Date "2024.11.23"]
[Round "1.7"]
[White "Benci, Jozef"]
[Black "Federic, Jozef"]
[Result "1/2-1/2"]
[ECO "A38"]
[WhiteElo "1977"]
[BlackElo "2198"]
[Annotator "RC"]
[PlyCount "91"]
[EventDate "2024.09.12"]
[EventType "team-tourn"]
[EventCountry "SVK"]
[SourceTitle "playchess.com"]
[Source "ChessBase"]
[SourceQuality "1"]
[TimeControl "5400+30"]

1. Nf3 {[%emt 0:00:39]} Nf6 {[%emt 0:00:15]} 2. c4 {[%emt 0:00:27]} c5 {[%emt 0:02:30]} 3. g3 {[%emt 0:01:18]} g6 {[%emt 0:01:53]} 4. Bg2 {[%emt 0:00:37]} Bg7 {[%emt 0:00:06]} 5. Nc3 {[%emt 0:00:31]} O-O {[%emt 0:00:46]} 6. O-O {[%emt 0:02:16]} Nc6 {[%emt 0:00:41]} 7. d3 {[%emt 0:07:35]} b6 {[%emt 0:09:15]} 8. Ne5 {[%emt 0:11:37]} Bb7 {[%emt 0:00:34]} 9. Nxc6 {[%emt 0:00:22]} Bxc6 {[%emt 0:00:15]} 10. e4 {[%emt 0:00:33]} Rc8 {[%emt 0:06:13]} 11. Be3 {[%emt 0:05:38]} Ba8 {[%emt 0:09:10]} 12. h3 {[%emt 0:01:24]} d6 {[%emt 0:02:29]} 13. Qd2 {[%emt 0:01:02]} Re8 {[%emt 0:00:35]} 14. Rfe1 {[%emt 0:12:49]} Nd7 {[%emt 0:11:20]} 15. Rac1 {[%emt 0:02:15]} Ne5 {[%emt 0:01:51]} 16. b3 {[%emt 0:10:55]} Nc6 {[%emt 0:04:28]} 17. Ne2 {[%emt 0:03:58]} Nd4 {[%emt 0:12:07]} 18. Bxd4 {[%emt 0:06:31]} cxd4 {[%emt 0:00:09]} 19. f4 {[%emt 0:04:42]} Qd7 {[%emt 0:05:11]} 20. Kh2 {[%emt 0:02:58]} Rc5 {[%emt 0:01:30]} 21. Ng1 {[%emt 0:01:27]} e5 {[%emt 0:02:48]} 22. fxe5 {[%emt 0:03:05]} dxe5 {[%emt 0:03:07]} 23. Nf3 {[%emt 0:02:15]} Qd6 {[%emt 0:06:21]} 24. Rf1 {[%emt 0:02:24]} Rc7 {[%emt 0:00:54]} 25. Rf2 {[%emt 0:02:10]} Bb7 {[%emt 0:01:38]} 26. Rcf1 {[%emt 0:01:46]} Rf8 {[%emt 0:00:24]} 27. b4 {[%emt 0:03:58]} Bc8 {[%emt 0:01:32]} 28. a4 {[%emt 0:00:57]} Bd7 {[%emt 0:02:58]} 29. Ra1 {[%emt 0:00:20]} Kh8 {[%emt 0:01:13]} 30. a5 {[%emt 0:00:34]} f5 {[%emt 0:00:29]} 31. exf5 {[%emt 0:00:34]} gxf5 {[%emt 0:00:13]} 32. axb6 {[%emt 0:00:10]} axb6 {[%emt 0:00:14]} 33. Re1 {[%emt 0:06:22]} e4 {[%emt 0:02:08]} 34. dxe4 {[%emt 0:00:31]} Rxc4 {[%emt 0:00:22]} 35. e5 {[%emt 0:01:18]} Qxb4 {[%emt 0:00:20]} 36. Qxb4 {[%emt 0:00:35]} Rxb4 {[%emt 0:00:05]} 37. e6 {[%emt 0:01:02]} Bc6 {[%emt 0:03:00]} 38. Ng5 {[%emt 0:00:25]} Bxg2 {[%emt 0:00:26]} 39. Kxg2 {[%emt 0:00:01]} Bf6 {[%emt 0:07:14]} 40. Rxf5 {[%emt 0:00:43]} Kg7 {[%emt 0:00:07]} 41. e7 {[%emt 0:00:00]} Re8 {[%emt 0:00:00]} 42. Ne6+ {[%emt 0:00:00]} Kg6 {[%emt 0:00:00]} 43. Rxf6+ {[%emt 0:00:00]} Kxf6 {[%emt 0:00:00]} 44. Nc7 {[%emt 0:00:00]} Rb2+ {[%emt 0:00:00]} 45. Kf3 {[%emt 0:00:00]} Kf7 {[%emt 0:00:00]} 46. Nxe8 {[%emt 0:00:00]} 1/2-1/2

[Event "Slovakian ECo-C Extraliga 2024-25"]
[Site "Slovakia"]
[Date "2024.11.23"]
[Round "1.8"]
[White "Csonka, Attila Istvan"]
[Black "Vadila, Ondrej"]
[Result "1/2-1/2"]
[ECO "B27"]
[WhiteElo "2271"]
[BlackElo "2206"]
[Annotator "RC"]
[PlyCount "44"]
[EventDate "2024.09.12"]
[EventType "team-tourn"]
[EventCountry "SVK"]
[SourceTitle "playchess.com"]
[Source "ChessBase"]
[SourceQuality "1"]
[TimeControl "5400+30"]

1. e4 {[%emt 0:00:04]} c5 {[%emt 0:00:06]} 2. Nf3 {[%emt 0:00:06]} g6 {[%emt 0:00:05]} 3. d4 {[%emt 0:00:10]} cxd4 {[%emt 0:00:05]} 4. Qxd4 {[%emt 0:01:47]} Nf6 {[%emt 0:00:07]} 5. e5 {[%emt 0:00:16]} Nc6 {[%emt 0:00:07]} 6. Qa4 {[%emt 0:00:08]} Nd5 {[%emt 0:00:12]} 7. Qe4 {[%emt 0:02:06]} Nb6 {[%emt 0:00:08]} 8. Nc3 {[%emt 0:00:56]} Bg7 {[%emt 0:00:12]} 9. h4 {[%emt 0:06:34]} d5 {[%emt 0:00:45]} 10. exd6 {[%emt 0:05:05]} Bf5 {[%emt 0:01:17]} 11. Qf4 {[%emt 0:03:03]} O-O {[%emt 0:14:15]} 12. Bb5 {[%emt 0:09:02]} e5 {[%emt 0:01:21]} 13. Qd2 {[%emt 0:02:56]} Nb4 {[%emt 0:07:48]} 14. Ne4 {[%emt 0:02:57]} N6d5 {[%emt 0:20:50]} 15. Bd3 {[%emt 0:01:29]} Nxd3+ {[%emt 0:00:26]} 16. Qxd3 {[%emt 0:02:41]} Nf6 {[%emt 0:16:33]} 17. Nfg5 {[%emt 0:04:00]} Rc8 {[%emt 0:07:56]} 18. c3 {[%emt 0:03:39]} Rc6 {[%emt 0:01:52]} 19. Be3 {[%emt 0:01:30]} Nxe4 {[%emt 0:01:15]} 20. Nxe4 {[%emt 0:00:07]} Bxe4 {[%emt 0:04:19]} 21. Qxe4 {[%emt 0:00:15]} Qxd6 {[%emt 0:00:06]} 22. Rd1 {[%emt 0:02:13]} Qe6 {[%emt 0:01:38]} 1/2-1/2

[Event "Slovakian ECo-C Extraliga 2024-25"]
[Site "Slovakia"]
[Date "2024.11.23"]
[Round "1.8"]
[White "Balogh, Peter"]
[Black "Elias, David"]
[Result "0-1"]
[ECO "B63"]
[WhiteElo "2242"]
[BlackElo "2255"]
[Annotator "RC"]
[PlyCount "78"]
[EventDate "2024.09.12"]
[EventType "team-tourn"]
[EventCountry "SVK"]
[SourceTitle "playchess.com"]
[Source "ChessBase"]
[SourceQuality "1"]
[TimeControl "5400+30"]

1. e4 {[%emt 0:00:23]} c5 {[%emt 0:00:05]} 2. Nf3 {[%emt 0:00:21]} d6 {[%emt 0:00:06]} 3. d4 {[%emt 0:00:08]} cxd4 {[%emt 0:00:03]} 4. Nxd4 {[%emt 0:00:16]} Nf6 {[%emt 0:00:04]} 5. Nc3 {[%emt 0:00:09]} Nc6 {[%emt 0:00:05]} 6. Bg5 {[%emt 0:00:46]} e6 {[%emt 0:00:04]} 7. Qd2 {[%emt 0:00:15]} Be7 {[%emt 0:00:05]} 8. O-O-O {[%emt 0:00:16]} a6 {[%emt 0:00:02]} 9. f3 {[%emt 0:01:18]} Nxd4 {[%emt 0:01:54]} 10. Qxd4 {[%emt 0:00:14]} b5 {[%emt 0:00:04]} 11. f4 {[%emt 0:00:07]} Bb7 {[%emt 0:08:08]} 12. Kb1 {[%emt 0:25:14]} Qa5 {[%emt 0:24:52]} 13. Bxf6 {[%emt 0:08:07]} gxf6 {[%emt 0:00:27]} 14. a3 {[%emt 0:17:23]} Rc8 {[%emt 0:16:47]} 15. e5 {[%emt 0:08:28]} fxe5 {[%emt 0:01:45]} 16. fxe5 {[%emt 0:00:17]} d5 {[%emt 0:00:04]} 17. Ne4 {[%emt 0:04:02]} Qc7 {[%emt 0:06:42]} 18. Nd6+ {[%emt 0:14:07]} Bxd6 {[%emt 0:00:08]} 19. exd6 {[%emt 0:00:06]} Qxc2+ {[%emt 0:00:03]} 20. Ka2 {[%emt 0:01:50]} Kd7 {[%emt 0:07:51]} 21. Bd3 {[%emt 0:12:03]} Qc5 {[%emt 0:14:06]} 22. Qf6 {[%emt 0:00:58]} Qxd6 {[%emt 0:00:08]} 23. Qxf7+ {[%emt 0:00:09]} Qe7 {[%emt 0:00:03]} 24. Qh5 {[%emt 0:01:05]} Rcf8 {[%emt 0:09:42]} 25. Rhe1 {[%emt 0:00:26]} Rf2 {[%emt 0:00:41]} 26. Re2 {[%emt 0:01:58]} Rxe2 {[%emt 0:00:04]} 27. Bxe2 {[%emt 0:00:21]} Rf8 {[%emt 0:06:15]} 28. Rc1 {[%emt 0:00:47]} Qg7 {[%emt 0:02:37]} 29. Bf3 {[%emt 0:01:01]} Rf4 {[%emt 0:00:21]} 30. Qh3 {[%emt 0:01:27]} b4 {[%emt 0:00:38]} 31. Re1 {[%emt 0:00:39]} Qg6 {[%emt 0:01:00]} 32. Bh5 {[%emt 0:00:20]} Qf5 {[%emt 0:00:46]} 33. g4 {[%emt 0:00:39]} Qc2 {[%emt 0:00:39]} 34. Qb3 {[%emt 0:01:08]} Qxb3+ {[%emt 0:00:15]} 35. Kxb3 {[%emt 0:00:04]} bxa3 {[%emt 0:00:12]} 36. bxa3 {[%emt 0:00:22]} Bc6 {[%emt 0:00:26]} 37. g5 {[%emt 0:00:28]} Kd6 {[%emt 0:00:32]} 38. h3 {[%emt 0:00:26]} e5 {[%emt 0:00:26]} 39. Be2 {[%emt 0:00:13]} Re4 {[%emt 0:00:22]} 0-1

[Event "Slovakian ECo-C Extraliga 2024-25"]
[Site "Slovakia"]
[Date "2024.11.23"]
[Round "1.8"]
[White "Banas, Kamil"]
[Black "Kapolkova, Greta"]
[Result "1-0"]
[ECO "B38"]
[WhiteElo "2159"]
[BlackElo "1904"]
[Annotator "RC"]
[PlyCount "63"]
[EventDate "2024.09.12"]
[EventType "team-tourn"]
[EventCountry "SVK"]
[SourceTitle "playchess.com"]
[Source "ChessBase"]
[SourceQuality "1"]
[TimeControl "5400+30"]

1. e4 {[%emt 0:00:03]} c5 {[%emt 0:00:09]} 2. c4 {[%emt 0:01:05]} Nc6 {[%emt 0:00:10]} 3. Ne2 {[%emt 0:00:07]} g6 {[%emt 0:00:20]} 4. d4 {[%emt 0:00:26]} cxd4 {[%emt 0:00:25]} 5. Nxd4 {[%emt 0:00:03]} Bg7 {[%emt 0:00:10]} 6. Be3 {[%emt 0:00:16]} d6 {[%emt 0:01:02]} 7. Nc3 {[%emt 0:01:24]} Nf6 {[%emt 0:02:16]} 8. Be2 {[%emt 0:00:20]} O-O {[%emt 0:02:13]} 9. O-O {[%emt 0:00:27]} Bd7 {[%emt 0:20:12]} 10. Qd2 {[%emt 0:01:01]} Rc8 {[%emt 0:09:38]} 11. f3 {[%emt 0:04:17]} a6 {[%emt 0:09:47]} 12. Rfc1 {[%emt 0:04:16]} Nxd4 {[%emt 0:20:23]} 13. Bxd4 {[%emt 0:00:23]} Be6 {[%emt 0:00:11]} 14. b3 {[%emt 0:06:05]} Nd7 {[%emt 0:01:27]} 15. Be3 {[%emt 0:16:36]} Qc7 {[%emt 0:07:42]} 16. Rc2 {[%emt 0:08:12]} b5 {[%emt 0:05:11]} 17. Rac1 {[%emt 0:00:37]} bxc4 {[%emt 0:00:08]} 18. Bxc4 {[%emt 0:01:14]} Bxc4 {[%emt 0:00:09]} 19. Nd5 {[%emt 0:00:40]} Qd8 {[%emt 0:05:14]} 20. Rxc4 {[%emt 0:00:55]} Rxc4 {[%emt 0:00:10]} 21. Rxc4 {[%emt 0:00:16]} e6 {[%emt 0:01:13]} 22. Nb4 {[%emt 0:06:48]} Ne5 {[%emt 0:00:23]} 23. Rd4 {[%emt 0:02:52]} d5 {[%emt 0:07:55]} 24. exd5 {[%emt 0:00:54]} exd5 {[%emt 0:00:56]} 25. Nxa6 {[%emt 0:07:21]} Qc8 {[%emt 0:04:28]} 26. Nb4 {[%emt 0:01:37]} Re8 {[%emt 0:00:14]} 27. Nxd5 {[%emt 0:02:07]} Qf5 {[%emt 0:00:57]} 28. Re4 {[%emt 0:08:37]} f6 {[%emt 0:00:55]} 29. Qd4 {[%emt 0:07:34]} Kf7 {[%emt 0:00:29]} 30. Nc7 {[%emt 0:01:52]} Re7 {[%emt 0:00:31]} 31. Qd5+ {[%emt 0:00:36]} Kf8 {[%emt 0:00:25]} 32. Bc5 {[%emt 0:00:37]} 1-0

[Event "Slovakian ECo-C Extraliga 2024-25"]
[Site "Slovakia"]
[Date "2024.11.23"]
[Round "1.8"]
[White "Zvarik, Martin"]
[Black "Jakubek, Peter"]
[Result "1-0"]
[ECO "B12"]
[WhiteElo "2149"]
[BlackElo "2118"]
[Annotator "NA RC"]
[PlyCount "55"]
[EventDate "2024.09.12"]
[EventType "team-tourn"]
[EventCountry "SVK"]
[SourceTitle "playchess.com"]
[Source "ChessBase"]
[SourceQuality "1"]
[TimeControl "5400+30"]

1. e4 {[%emt 0:00:13]} c6 {[%emt 0:00:37]} 2. d4 {[%emt 0:01:47]} d5 {[%emt 0:00:36]} 3. f3 {[%emt 0:00:24]} dxe4 {[%emt 0:01:30]} 4. fxe4 {[%emt 0:00:07]} e5 {[%emt 0:01:41]} 5. Nf3 {[%emt 0:03:06]} Bg4 {[%emt 0:02:35]} 6. Bc4 {[%emt 0:01:43]} Nd7 {[%emt 0:01:26]} 7. O-O {[%emt 0:04:49]} Ngf6 {[%emt 0:03:58]} 8. c3 {[%emt 0:15:18]} Bh5 {[%emt 0:02:53]} 9. Qe1 {[%emt 0:06:54]} Bd6 {[%emt 0:07:52]} 10. Be3 {[%emt 0:09:23]} O-O {[%emt 0:04:09]} 11. Nbd2 {[%emt 0:01:25]} b5 {[%emt 0:03:58]} 12. Bb3 {[%emt 0:06:05]} Re8 {[%emt 0:24:43]} 13. Bg5 {[%emt 0:14:49]} Qc7 {[%emt 0:08:29]} 14. dxe5 {[%emt 0:07:52]} Nxe5 {[%emt 0:13:34]} 15. Bxf6 {[%emt 0:03:10]} gxf6 {[%emt 0:03:02]} 16. Qh4 {[%emt 0:03:53]} Bg6 {[%emt 0:00:29]} 17. Nd4 {[%emt 0:01:21]} Nc4 {[%emt 0:03:04]} 18. Bxc4 {[%emt 0:03:06]} bxc4 {[%emt 0:00:19]} 19. Rae1 {[%emt 0:01:38]} Rad8 {[%emt 0:01:50]} 20. Nxc4 {[%emt 0:04:03]} Bc5 {[%emt 0:00:41]} 21. e5 {[%emt 0:04:51]} fxe5 {[%emt 0:04:32]} 22. Nxe5 {[%emt 0:01:09]} Qb6 {[%emt 0:00:52]} 23. Nxg6 {[%emt 0:01:04]} Rxe1 {[%emt 0:01:54]} 24. Rxe1 {[%emt 0:00:51]} Bxd4+ {[%emt 0:01:42]} 25. cxd4 {[%emt 0:00:09]} Rxd4 {[%emt 0:00:44]} 26. Ne7+ {[%emt 0:00:24]} Kf8 {[%emt 0:01:02]} 27. Qh6+ {[%emt 0:00:18]} Ke8 {[%emt 0:00:17]} 28. Nd5+ {[%emt 0:01:15]} 1-0